bitfinex/quotes_SOLUSD_20250131
["timestamp","ask_amount","ask_price","bid_price","bid_amount"]
[1738348815670,0.64566171,232.11,231.94,0.64648056]
[1738348815861,13.53733853,232.1,231.94,0.64648056]
[1738348816058,20.0,232.05,231.93,0.063]
[1738348816261,0.64566171,232.04,231.93,0.063]
[1738348816657,0.12549,232.03,231.93,0.063]
[1738348816974,0.64566171,232.06,231.94,35.07789678]
[1738348817158,0.64566171,232.06,231.93,0.063]
[1738348817473,20.0,232.02,231.93,0.063]
[1738348817661,13.53733853,232.05,231.93,0.063]
[1738348817662,0.64566171,232.01,231.93,0.063]
[1738348817862,13.53733853,232.03,231.93,0.063]
[1738348818180,20.0,232.0,231.93,0.063]
[1738348818470,0.64566171,231.99,231.93,0.063]
[1738348819072,6.25986246,231.99,231.96,35.07789678]
[1738348819376,6.25986246,231.99,231.93,0.70971573]
[1738348819377,6.25986246,231.99,231.97,0.54704567]
[1738348819554,6.25986246,231.99,231.93,0.063]
[1738348819875,6.25986246,232.04,231.91,0.54722282]
[1738348820054,0.74510867,232.03,231.91,0.54722282]
[1738348820253,6.25986246,231.99,231.91,0.44778617]
[1738348820450,0.80832043,232.0,231.91,0.44778617]
[1738348820651,0.80832043,231.98,231.84,35.72462412]
[1738348820862,0.80849649,232.01,231.88,35.07789678]
[1738348821061,6.25986246,232.02,231.94,35.07789678]
[1738348821272,6.25986246,232.02,231.95,0.6465646]
[1738348821679,6.25986246,232.0,231.93,0.64658265]
[1738348822549,6.25986246,232.0,231.82,2.0]
[1738348822550,20.0,231.97,231.86,0.64663132]
[1738348822762,0.12549,231.95,231.81,0.64678846]
[1738348822960,0.80865211,231.94,231.81,0.64678846]
[1738348823170,0.80859369,231.98,231.86,35.07789678]
[1738348823374,6.25986246,231.99,231.89,35.07789678]
[1738348823591,6.25986246,231.99,231.93,35.07789678]
[1738348823790,6.25986246,231.99,231.94,0.64655675]
[1738348823996,6.25986246,231.96,231.92,0.64658164]
[1738348824155,6.25986246,231.96,231.9,0.64665784]
[1738348824772,6.25986246,231.96,231.87,0.64670443]
[1738348824967,6.25986246,231.96,231.88,0.64671466]
[1738348825167,6.25986246,231.95,231.86,35.07789678]
[1738348825372,6.25986246,231.95,231.88,35.07789678]
[1738348825569,6.25986246,231.95,231.9,35.07789678]
[1738348825770,6.25986246,231.95,231.91,0.64661445]
[1738348826284,6.25986246,231.97,231.91,0.64661445]
[1738348826864,6.25986246,231.97,231.88,55.07789678]
[1738348826865,0.80839883,231.96,231.8,35.07789678]
[1738348827062,7.06826129,231.96,231.81,0.6468697]
[1738348827270,7.06826129,231.96,231.8,35.07789678]
[1738348827271,7.06826129,231.96,231.84,35.07789678]
[1738348827484,7.06826129,231.96,231.82,0.6467989]
[1738348827762,6.1773,231.94,231.81,0.64690721]
[1738348827967,20.0,231.87,231.77,0.6469806]
[1738348828176,0.80884069,231.86,231.75,0.64707255]
[1738348828377,0.80884526,231.89,231.78,35.07789678]
[1738348828595,0.80884526,231.93,231.81,35.07789678]
[1738348828771,0.80884526,231.93,231.82,0.64685345]
[1738348829388,20.0,231.91,231.76,0.64690431]
[1738348829601,0.80878617,231.9,231.76,0.64690431]
[1738348829775,0.80878617,231.9,231.77,35.07789678]
[1738348829974,0.80878617,231.9,231.86,0.063]
[1738348830295,20.0,231.86,231.78,0.64698409]
[1738348830491,20.8089028,231.85,231.73,0.64701202]
[1738348830676,20.8089028,231.85,231.69,35.07789678]
[1738348831186,20.0,231.81,231.65,35.07789678]
[1738348831392,20.0,231.77,231.63,35.07789678]
[1738348831601,20.0,231.73,231.62,0.063]
[1738348831911,20.0,231.68,231.62,0.063]
[1738348832192,4.52,231.73,231.62,0.063]
[1738348832193,0.80953365,231.67,231.62,0.063]
[1738348832371,14.34690213,231.72,231.62,0.063]
[1738348832573,0.8095636,231.72,231.62,0.063]
[1738348833086,6.5754,231.76,231.62,0.063]
[1738348833087,0.80933743,231.75,231.66,35.07789678]
[1738348833390,0.80927328,231.83,231.7,35.07789678]
[1738348833574,2.81146545,231.71,231.7,35.07789678]
[1738348833780,2.81146545,231.71,231.68,35.07789678]
[1738348834090,2.81146545,231.71,231.7,35.07789678]
[1738348835003,5.71483866,231.82,231.7,35.07789678]
[1738348835004,6.36953001,231.75,231.7,35.07789678]
[1738348835192,6.36953001,231.75,231.66,35.20338678]
[1738348835384,7.17850769,231.82,231.66,35.20338678]
[1738348835572,7.17850769,231.82,231.68,35.07789678]
[1738348835775,6.36953001,231.82,231.72,35.07789678]
[1738348835979,7.17852905,231.82,231.72,35.07789678]
[1738348836181,6.36953001,231.82,231.72,35.07789678]
[1738348836609,6.36953001,231.82,231.65,2.0]
[1738348836610,6.36953001,231.82,231.7,1.12549]
[1738348836896,6.36953001,231.82,231.76,35.07789678]
[1738348837296,6.36953001,231.82,231.74,35.07789678]
[1738348837475,6.36953001,231.82,231.71,0.12549]
[1738348837476,6.36953001,231.82,231.76,35.07789678]
[1738348837669,51.24,231.87,231.76,35.07789678]
[1738348838377,0.80877703,231.86,231.76,35.07789678]
[1738348838576,51.24,231.87,231.76,35.07789678]
[1738348838884,51.24,231.87,231.78,35.07789678]
[1738348839087,51.24,231.87,231.82,35.07789678]
[1738348839399,51.24,231.87,231.8,20.0881258]
[1738348839695,51.24,231.87,231.74,0.12549]
[1738348839696,51.24,231.87,231.77,35.07789678]
[1738348840398,51.24,231.87,231.75,35.07789678]
[1738348840593,51.24,231.87,231.74,4.315]
[1738348840594,51.24,231.87,231.79,35.07789678]
[1738348840783,51.24,231.87,231.81,35.07789678]
[1738348840979,51.24,231.87,231.83,35.07789678]
[1738348841171,51.24,231.87,231.77,35.07789678]
[1738348841381,51.24,231.87,231.75,35.07789678]
[1738348841680,51.24,231.87,231.79,35.07789678]
[1738348841878,1.5933,231.94,231.83,35.07789678]
[1738348842402,1.5933,231.94,231.85,35.07789678]
[1738348842703,6.3687,231.98,231.87,35.07789678]
[1738348842891,6.3687,231.98,231.85,4.313]
[1738348842892,6.3687,231.98,231.89,35.07789678]
[1738348843204,6.3987,232.06,231.97,35.07789678]
[1738348843504,0.03,232.06,231.99,35.07789678]
[1738348843710,0.03,232.06,232.01,35.07789678]
[1738348844680,0.03,232.06,231.93,35.07789678]
[1738348844884,0.03,232.06,231.89,35.07789678]
[1738348845091,0.03,232.06,231.91,35.07789678]
[1738348845698,0.03,232.06,231.95,35.07789678]
[1738348845910,0.03,232.06,231.99,35.07789678]
[1738348846196,0.03,232.06,232.04,35.07789678]
[1738348846380,0.03,232.06,232.02,35.07789678]
[1738348846785,0.03,232.06,232.04,35.07789678]
[1738348846986,0.03,232.06,232.05,13.66282853]
[1738348847590,0.03,232.06,232.04,35.07789678]
[1738348847788,0.03,232.06,232.0,4.3103]
[1738348847991,0.03,232.06,231.98,35.07789678]
[1738348848183,0.03,232.06,232.02,35.07789678]
[1738348848585,0.03,232.06,232.04,35.07789678]
[1738348848783,0.03,232.06,232.02,35.07789678]
[1738348849182,0.03,232.06,232.05,0.25098]
[1738348849400,0.03,232.06,232.05,13.66282853]
[1738348850186,0.03,232.06,232.05,4.43489]
[1738348850387,0.03,232.06,232.05,0.12549]
[1738348851604,0.03,232.06,232.04,35.07789678]
[1738348852400,0.03,232.06,232.02,35.07789678]
[1738348852705,0.03,232.06,232.03,20.0]
[1738348853085,0.03,232.06,232.04,35.07789678]
[1738348854794,0.03,232.06,231.91,1.0]
[1738348854997,0.03,232.06,231.92,35.07789678]
[1738348855405,0.03,232.06,231.97,20.0]
[1738348855598,0.03,232.06,231.92,35.07789678]
[1738348855803,6.428,232.05,231.9,35.07789678]
[1738348856121,6.428,232.05,231.93,20.0]
[1738348856289,0.80804808,232.04,231.93,20.0]
[1738348856493,7.23617365,232.05,231.93,20.0]
[1738348856729,7.23617365,232.05,231.88,35.07789678]
[1738348856730,15.02854853,232.04,231.88,35.07789678]
[1738348856892,0.80837641,232.03,231.86,35.07789678]
[1738348857090,0.80837641,232.03,231.88,35.07789678]
[1738348857994,13.41184853,232.02,231.84,35.07789678]
[1738348858308,13.41184853,232.0,231.82,35.07789678]
[1738348858511,13.41184853,231.98,231.8,35.07789678]
[1738348858685,20.0,231.95,231.8,35.07789678]
[1738348858885,0.80858319,231.94,231.8,35.07789678]
[1738348859112,0.80858319,231.94,231.78,35.07789678]
[1738348859320,0.80858319,231.94,231.8,35.07789678]
[1738348859522,0.80858319,231.94,231.78,35.07789678]
[1738348859822,13.41184853,231.91,231.73,35.07789678]
[1738348860025,1.6403,231.88,231.71,35.07789678]
[1738348860187,20.0,231.84,231.67,35.07789678]
[1738348860487,6.6476,231.78,231.63,35.07789678]
[1738348860689,6.6476,231.78,231.62,0.063]
[1738348860690,20.0,231.75,231.62,0.063]
[1738348860910,0.80920702,231.74,231.62,0.063]
[1738348861291,13.41184853,231.73,231.62,0.063]
[1738348861490,0.80943186,231.72,231.62,0.063]
[1738348861911,0.80943186,231.72,231.66,20.0]
[1738348862111,0.80937843,231.77,231.67,35.07789678]
[1738348862320,0.80937843,231.77,231.69,35.07789678]
[1738348862640,6.6476,231.78,231.71,35.07789678]
[1738348863206,0.80916252,231.87,231.75,35.07789678]
[1738348863407,0.80916252,231.87,231.66,1.0]
[1738348863408,0.80916252,231.87,231.77,35.07789678]
[1738348863713,20.80877898,231.86,231.71,35.07789678]
[1738348864011,0.80877898,231.86,231.65,1.0]
[1738348864331,1.6403,231.88,231.79,35.07789678]
[1738348864635,6.1224,231.97,231.84,35.07789678]
[1738348864806,0.12549,231.95,231.77,35.07789678]
[1738348865114,20.0,231.9,231.73,35.07789678]
[1738348865305,0.80881474,231.89,231.73,35.07789678]
[1738348865505,13.53733853,231.91,231.71,35.07789678]
[1738348865706,20.0,231.86,231.69,35.07789678]
[1738348865914,20.80896712,231.85,231.71,35.07789678]
[1738348866138,20.80896712,231.85,231.62,4.3803]
[1738348866139,1.0,232.05,231.84,35.07789678]
[1738348866416,2.80849261,232.04,231.78,35.07789678]
[1738348866592,0.12549,231.95,231.69,1.0]
[1738348866798,13.53733853,231.93,231.74,35.07789678]
[1738348867003,0.80876922,231.92,231.78,35.07789678]
[1738348867224,0.80858326,231.96,231.77,20.0]
[1738348867819,0.80858326,231.96,231.78,35.07789678]
[1738348868194,13.41184853,231.95,231.78,35.07789678]
[1738348868426,0.80863682,231.94,231.78,35.07789678]
[1738348868932,13.53733853,231.93,231.74,35.07789678]
[1738348869098,0.80871474,231.92,231.76,35.07789678]
[1738348869300,0.80871474,231.92,231.79,35.07789678]
[1738348869634,0.80862577,231.95,231.79,35.07789678]
[1738348869809,0.80862577,231.95,231.83,35.07789678]
[1738348870017,0.80862577,231.95,231.85,35.07789678]
[1738348870311,13.41184853,231.99,231.85,35.07789678]
[1738348870520,0.80850805,231.98,231.87,35.07789678]
[1738348870916,0.83843946,232.06,231.89,35.07789678]
[1738348871298,0.83843946,232.06,231.73,1.0]
[1738348871299,0.12549,232.05,231.73,1.0]
[1738348871510,20.0,231.92,231.77,35.07789678]
[1738348871714,13.53733853,231.99,231.77,35.07789678]
[1738348871715,0.80864429,231.91,231.77,35.07789678]
[1738348871920,0.80863868,231.98,231.83,35.07789678]
[1738348872223,0.12549,231.96,231.81,35.07789678]
[1738348872422,0.80861233,231.95,231.81,35.07789678]
[1738348873121,0.80855809,232.0,231.79,0.12549]
[1738348873320,4.32,232.02,231.88,35.07789678]
[1738348873631,13.41184853,232.0,231.88,35.07789678]
[1738348873925,0.80844498,231.99,231.88,35.07789678]
[1738348874504,0.80845356,232.05,231.96,35.07789678]
[1738348874711,0.03,232.06,232.0,35.07789678]
[1738348874914,0.03,232.06,232.02,35.07789678]
[1738348875716,0.03,232.06,231.96,35.07789678]
[1738348875717,0.03,232.06,232.04,35.07789678]
[1738348876520,0.03,232.06,232.05,0.25098]
[1738348876826,0.03,232.06,232.04,35.07789678]
[1738348877004,0.03,232.06,232.02,35.07789678]
[1738348877411,0.03,232.06,232.04,35.07789678]
[1738348877607,0.03,232.06,232.02,35.07789678]
[1738348878021,0.03,232.06,231.98,35.07789678]
[1738348878240,0.03,232.06,231.87,1.0]
[1738348878241,0.03,232.06,232.02,35.07789678]
[1738348879120,0.03,232.06,231.98,35.07789678]
[1738348879811,0.03,232.06,231.96,35.07789678]
[1738348880006,0.03,232.06,232.02,35.07789678]
[1738348880214,0.03,232.06,232.0,35.07789678]
[1738348880417,0.03,232.06,231.98,35.07789678]
[1738348880812,0.03,232.06,231.92,35.07789678]
[1738348881108,0.03,232.06,231.94,35.07789678]
[1738348881530,13.53733853,232.05,231.92,35.07789678]
[1738348881712,0.80827604,232.04,231.92,35.07789678]
[1738348881915,0.80827604,232.04,231.94,35.07789678]
[1738348882520,0.83824288,232.06,231.94,35.07789678]
[1738348883033,0.12549,232.03,231.92,35.07789678]
[1738348883245,0.80835542,232.02,231.92,35.07789678]
[1738348883740,0.80835542,232.02,231.88,35.07789678]
[1738348884120,0.8084876,232.01,231.92,35.07789678]
[1738348884341,20.12549,232.02,231.92,35.07789678]
[1738348884635,0.68319597,232.03,231.94,35.07789678]
[1738348884834,0.83825069,232.06,231.96,35.07789678]
[1738348885051,0.03,232.06,231.89,13.66282853]
[1738348885231,0.03,232.06,232.04,35.07789678]
[1738348885841,0.03,232.06,232.02,35.07789678]
[1738348886140,0.03,232.06,232.0,35.07789678]
[1738348886341,0.03,232.06,232.04,35.07789678]
[1738348886728,0.03,232.06,232.0,35.07789678]
[1738348887112,0.03,232.06,231.96,35.07789678]
[1738348887438,0.03,232.06,232.03,35.07789678]
[1738348888238,0.03,232.06,232.01,35.07789678]
[1738348888935,0.03,232.06,231.96,4.311]
[1738348888936,0.03,232.06,232.03,35.07789678]
[1738348889143,0.03,232.06,232.05,35.07789678]
[1738348889516,0.03,232.06,232.05,35.20338678]
[1738348889717,0.03,232.06,232.05,48.61523531]
[1738348889934,0.03,232.06,232.05,48.74072531]
[1738348890140,0.03,232.06,232.05,35.07789678]
[1738348890538,0.03,232.06,232.05,48.74072531]
[1738348890723,0.03,232.12,232.09,20.12549]
[1738348890919,0.03,232.12,232.08,20.0]
[1738348890920,0.03,232.12,232.11,35.07789678]
[1738348891117,0.03,232.12,232.09,35.07789678]
[1738348891542,0.03,232.12,232.11,35.07789678]
[1738348892933,0.03,232.12,232.09,35.07789678]
[1738348893625,0.03,232.12,231.98,4.3107]
[1738348893827,0.03,232.12,232.05,35.07789678]
[1738348894041,0.03,232.12,232.07,35.07789678]
[1738348894766,0.03,232.12,232.11,20.0]
[1738348894927,0.03,232.12,232.11,55.07789678]
[1738348895562,0.03,232.12,232.11,35.07789678]
[1738348896472,0.03,232.12,232.06,35.07789678]
[1738348896777,0.03,232.12,232.08,35.07789678]
[1738348896953,0.03,232.12,232.06,35.07789678]
[1738348897153,0.03,232.12,232.03,35.07789678]
[1738348897354,0.03,232.12,232.05,35.07789678]
[1738348897880,0.03,232.12,232.03,35.07789678]
[1738348898181,0.03,232.12,232.05,35.07789678]
[1738348898383,0.03,232.12,232.09,35.07789678]
[1738348898684,0.03,232.12,232.05,35.07789678]
[1738348898978,0.03,232.12,232.01,20.0]
[1738348899155,0.03,232.12,232.11,35.07789678]
[1738348899359,0.03,232.12,232.09,35.07789678]
[1738348900096,0.03,232.12,232.11,35.07789678]
[1738348900253,0.03,232.12,232.02,13.66282853]
[1738348900254,0.03,232.12,232.07,35.07789678]
[1738348901047,0.03,232.12,232.05,35.07789678]
[1738348901245,0.03,232.12,232.07,35.07789678]
[1738348902896,0.03,232.12,232.05,35.07789678]
[1738348903471,0.03,232.12,232.03,35.07789678]
[1738348903780,1.555,232.11,231.98,35.07789678]
[1738348903985,1.555,232.11,232.0,35.07789678]
[1738348904189,0.80797475,232.1,232.0,35.07789678]
[1738348904375,6.6361,232.09,231.96,35.07789678]
[1738348904584,6.6361,232.09,231.86,6.0041]
[1738348904585,0.80810255,232.08,231.94,35.07789678]
[1738348905157,20.0,232.06,231.98,0.063]
[1738348905355,0.80824861,232.05,231.98,0.063]
[1738348906473,20.0,232.04,231.88,35.07789678]
[1738348906789,0.80837005,232.03,231.87,35.07789678]
[1738348906976,20.0,231.99,231.85,35.07789678]
[1738348907159,0.80844696,232.02,231.94,35.07789678]
[1738348907359,0.8082458,232.06,231.96,35.07789678]
[1738348907554,20.8082458,232.06,231.96,35.07789678]
[1738348907767,20.8082458,232.06,231.94,35.07789678]
[1738348907970,20.8082458,232.06,231.96,35.07789678]
[1738348908184,20.0,232.06,231.97,35.07789678]
[1738348908482,4.06,232.07,231.97,35.07789678]
[1738348909196,0.80802252,232.08,231.97,35.07789678]
[1738348909557,6.6361,232.09,232.01,35.07789678]
[1738348910180,6.6361,232.09,232.02,35.07789678]
[1738348910572,6.6361,232.09,232.03,35.07789678]
[1738348911404,6.6361,232.09,232.05,35.07789678]
[1738348911572,0.03,232.12,232.08,35.07789678]
[1738348911778,0.03,232.12,232.09,35.07789678]
[1738348912096,0.03,232.12,232.02,35.07789678]
[1738348912283,0.83794769,232.12,232.04,35.07789678]
[1738348912484,0.03,232.12,232.08,35.07789678]
[1738348912686,0.03,232.12,232.07,35.07789678]
[1738348912886,0.03,232.12,232.04,35.07789678]
[1738348913090,0.03,232.12,231.97,13.53733853]
[1738348913091,0.03,232.12,232.03,35.07789678]
[1738348913291,0.03,232.12,232.07,35.07789678]
[1738348913796,0.03,232.12,232.04,35.07789678]
[1738348914373,0.03,232.12,232.06,35.07789678]
[1738348914571,0.03,232.12,232.04,35.07789678]
[1738348915088,0.03,232.12,232.06,35.07789678]
[1738348915499,0.03,232.12,232.08,35.07789678]
[1738348916001,0.03,232.12,231.99,35.07789678]
[1738348916190,0.03,232.12,231.98,35.07789678]
[1738348916191,1.83803722,232.12,231.98,35.07789678]
[1738348916380,0.83803722,232.12,231.98,35.07789678]
[1738348916584,20.0,232.08,231.98,35.07789678]
[1738348916783,0.80813578,232.07,231.98,35.07789678]
[1738348917085,0.80813578,232.07,231.94,35.07789678]
[1738348917283,20.0,232.03,231.92,35.07789678]
[1738348917614,6.3447,232.01,231.96,0.063]
[1738348917806,0.8083151,232.0,231.96,0.063]
[1738348917975,6.3447,232.01,231.96,0.063]
[1738348918178,0.80826857,232.0,231.96,0.063]
[1738348918390,0.80826857,232.0,231.88,35.07789678]
[1738348919192,20.0,231.98,231.88,35.07789678]
[1738348919395,0.80844749,231.97,231.86,35.07789678]
[1738348919713,6.3447,232.01,231.89,35.07789678]
[1738348919714,0.80849494,232.0,231.89,35.07789678]
[1738348920013,6.3447,232.01,231.93,35.07789678]
[1738348920204,0.80828361,232.0,231.91,35.07789678]
[1738348920399,7.15307674,232.01,231.91,35.07789678]
[1738348920825,7.15307674,232.01,231.8,4.377]
[1738348920826,20.0,231.98,231.8,0.063]
[1738348921113,20.0,231.96,231.8,0.063]
[1738348921409,2.93837343,231.95,231.8,35.14089678]
[1738348921610,0.80868813,231.95,231.86,35.07789678]
[1738348921831,13.41184853,231.96,231.8,0.063]
[1738348921998,0.80872329,231.95,231.8,0.063]
[1738348922194,20.0,231.93,231.8,35.14089678]
[1738348922403,0.80865396,231.92,231.8,35.14089678]
[1738348922696,0.80868352,231.95,231.84,35.07789678]
[1738348922904,0.8084941,231.96,231.88,35.07789678]
[1738348923198,20.0,231.98,231.9,35.07789678]
[1738348923602,1.5559,232.02,231.94,35.07789678]
[1738348923837,1.5559,232.02,231.96,35.07789678]
[1738348924819,6.46281856,232.08,231.99,35.07789678]
[1738348925021,7.37033707,232.09,231.99,35.07789678]
[1738348925327,6.5623,232.09,231.99,35.07789678]
[1738348925618,0.80795389,232.08,231.93,13.53733853]
[1738348925820,0.12549,232.07,231.88,35.07789678]
[1738348926026,20.80829273,232.06,231.93,35.07789678]
[1738348926204,20.0,232.06,231.95,35.07789678]
[1738348926600,0.80812415,232.05,231.93,35.07789678]
[1738348926825,0.80812415,232.05,231.9,35.07789678]
[1738348927035,20.80824689,232.06,231.94,35.07789678]
[1738348927210,20.80824689,232.06,231.92,35.07789678]
[1738348927409,20.80824689,232.06,231.9,35.07789678]
[1738348927622,20.80824689,232.06,231.92,35.07789678]
[1738348928226,0.80819592,232.05,231.92,35.07789678]
[1738348928700,0.80819592,232.05,231.85,0.12549]
[1738348929020,0.80819592,232.05,231.8,0.063]
[1738348929021,20.0,231.99,231.84,35.07789678]
[1738348929218,0.80841057,231.98,231.86,35.07789678]
[1738348929420,3.94,231.99,231.86,35.07789678]
[1738348929737,0.80834832,231.98,231.86,35.07789678]
[1738348930036,2.92673992,231.98,231.82,35.14089678]
[1738348930401,2.92673992,231.98,231.84,35.07789678]
[1738348930603,3.94,231.99,231.88,35.07789678]
[1738348930848,3.94,231.99,231.82,0.063]
[1738348930849,21.6613,231.94,231.82,0.063]
[1738348931129,0.80859706,231.93,231.82,0.063]
[1738348931319,1.0,231.92,231.82,0.063]
[1738348931620,20.0,231.87,231.8,0.063]
[1738348931825,0.80889821,231.86,231.8,0.063]
[1738348932022,20.0,231.87,231.8,0.063]
[1738348932198,0.8087308,231.86,231.8,0.063]
[1738348932404,0.80883582,231.9,231.8,0.063]
[1738348932602,1.6613,231.94,231.86,35.07789678]
[1738348932817,1.6613,231.94,231.9,35.07789678]
[1738348933129,1.6613,231.94,231.87,35.07789678]
[1738348933617,1.6613,231.94,231.89,35.07789678]
[1738348933819,1.6613,231.94,231.82,13.53733853]
[1738348933820,1.6613,231.94,231.87,35.07789678]
[1738348934006,1.6613,231.94,231.8,0.063]
[1738348934007,1.6613,231.94,231.84,35.07789678]
[1738348934909,0.80849637,231.93,231.8,35.14089678]
[1738348935102,0.12549,231.92,231.8,0.063]
[1738348935419,0.80869691,231.91,231.8,0.063]
[1738348935734,20.12549,231.9,231.8,0.063]
[1738348935923,0.80883981,231.89,231.8,0.063]
[1738348936631,20.0,231.81,231.69,0.063]
[1738348936839,0.80911459,231.8,231.69,0.063]
[1738348937015,1.12549,231.78,231.62,0.063]
[1738348937206,20.0,231.73,231.62,0.063]
[1738348937408,0.80939419,231.72,231.62,0.063]
[1738348939120,0.80928101,231.75,231.63,35.07789678]
[1738348939522,4.72924619,231.76,231.66,35.07789678]
[1738348939725,4.72908192,231.76,231.66,35.07789678]
[1738348939927,3.92,231.76,231.66,35.07789678]
[1738348940424,3.92,231.76,231.65,35.07789678]
[1738348940624,3.92,231.76,231.67,35.07789678]
[1738348941531,3.92,231.76,231.65,35.07789678]
[1738348941715,0.80911303,231.75,231.62,35.14089678]
[1738348941932,0.80911303,231.75,231.62,0.063]
[1738348942257,5.54412662,231.75,231.62,0.063]
[1738348942915,5.54412662,231.75,231.63,35.07789678]
[1738348943122,24.72918762,231.76,231.66,35.07789678]
[1738348943347,23.92,231.76,231.66,35.07789678]
[1738348943522,0.80915834,231.75,231.63,35.07789678]
[1738348943722,0.80915834,231.75,231.62,35.14089678]
[1738348944250,0.80915834,231.75,231.62,0.063]
[1738348944821,0.80915834,231.75,231.62,35.14089678]
[1738348945028,20.0,231.71,231.62,0.063]
[1738348945222,6.0547,231.69,231.62,0.063]
[1738348945439,0.80952103,231.68,231.62,0.063]
[1738348946346,6.0547,231.69,231.62,0.063]
[1738348946818,0.8094068,231.68,231.62,0.063]
[1738348947964,6.0547,231.69,231.62,0.063]
[1738348948446,6.0547,231.69,231.62,35.14089678]
[1738348948658,0.80930989,231.74,231.62,35.14089678]
[1738348949344,20.0,231.72,231.62,0.063]
[1738348949514,0.80941098,231.71,231.62,0.063]
[1738348949847,0.80933611,231.75,231.65,35.07789678]
[1738348950062,0.80933611,231.75,231.66,35.07789678]
[1738348950341,6.447,231.76,231.62,4.3804]
[1738348950342,20.0,231.73,231.62,0.063]
[1738348950645,0.80931863,231.72,231.62,0.063]
[1738348950941,10.84491203,231.76,231.65,35.07789678]
[1738348951120,7.25632697,231.76,231.66,35.07789678]
[1738348951441,6.447,231.76,231.67,35.07789678]
[1738348951637,14.22098327,231.75,231.62,0.063]
[1738348952049,14.22098327,231.75,231.62,35.14089678]
[1738348952535,13.23462806,231.76,231.64,35.07789678]
[1738348952845,8.5653916,231.76,231.64,35.07789678]
[1738348953021,7.25609823,231.76,231.64,35.07789678]
[1738348953216,7.25609823,231.76,231.62,35.14089678]
[1738348953217,13.41184853,231.75,231.62,35.14089678]
[1738348953420,20.0,231.68,231.62,0.063]
[1738348953639,0.80941357,231.67,231.62,0.063]
[1738348953862,0.80942803,231.7,231.62,0.063]
[1738348954024,6.447,231.76,231.65,35.07789678]
[1738348954535,6.447,231.76,231.62,0.063]
[1738348954536,0.8091631,231.75,231.62,0.063]
[1738348955235,0.8091631,231.75,231.62,35.14089678]
[1738348955737,0.8091631,231.75,231.62,0.063]
[1738348956755,0.8091631,231.75,231.63,35.07789678]
[1738348957058,0.8091631,231.75,231.62,0.063]
[1738348957345,20.0,231.73,231.62,0.063]
[1738348957734,0.80927963,231.75,231.62,0.063]
[1738348958048,20.0,231.73,231.62,0.063]
[1738348958364,6.477,231.76,231.69,35.07789678]
[1738348958528,0.03,231.76,231.73,35.07789678]
[1738348959144,0.03,231.76,231.62,0.063]
[1738348959447,0.83915837,231.76,231.62,0.063]
[1738348959657,0.03,231.76,231.64,35.07789678]
[1738348959939,0.83919548,231.76,231.62,35.14089678]
[1738348960174,20.03,231.76,231.62,0.063]
[1738348960355,0.80927618,231.75,231.62,0.063]
[1738348960926,0.03,231.76,231.62,35.14089678]
[1738348961132,13.41184853,231.74,231.62,0.063]
[1738348961344,6.2431,231.71,231.62,0.063]
[1738348961526,0.80941109,231.7,231.62,0.063]
[1738348963921,6.2431,231.71,231.62,35.14089678]
[1738348964331,6.2431,231.71,231.62,0.063]
[1738348964539,1.5639,231.73,231.66,35.07789678]
[1738348965351,3.83,231.76,231.68,35.07789678]
[1738348965542,0.03,231.76,231.72,35.07789678]
[1738348965744,0.03,231.76,231.7,35.07789678]
[1738348966436,0.03,231.76,231.71,0.12549]
[1738348966631,0.03,231.76,231.74,35.07789678]
[1738348966864,0.03,231.76,231.68,35.07789678]
[1738348967038,0.03,231.76,231.64,35.07789678]
[1738348967233,0.03,231.76,231.62,35.14089678]
[1738348967755,0.03,231.76,231.62,0.063]
[1738348967963,0.03,231.76,231.63,0.12549]
[1738348968259,0.03,231.76,231.66,35.07789678]
[1738348968470,0.03,231.76,231.64,35.07789678]
[1738348969872,0.03,231.76,231.66,35.07789678]
[1738348970042,0.83911884,231.76,231.62,35.14089678]
[1738348970237,13.44184853,231.76,231.62,0.063]